fUSD/lending_fUSD_20240317
["ID","MTS","AMOUNT","RATE_DAILY","PERIOD"]
[319296068,1710643839358,-500.0,0.00015397,2]
[319296069,1710643839367,-460.0,0.00015397,2]
[319296070,1710643839376,-537.09,0.00015397,2]
[319296071,1710643839385,-500.0,0.00015397,2]
[319296072,1710643839394,-500.0,0.00015397,2]
[319296073,1710643839402,-500.0,0.00015397,2]
[319296074,1710643839412,-501.14,0.00015397,2]
[319296075,1710643839421,-500.0,0.00015397,2]
[319296076,1710643839430,-500.0,0.00015397,2]
[319296077,1710643839439,-500.0,0.00015397,2]
[319296078,1710643839448,-515.12459736,0.00015397,2]
[319296079,1710643839457,-500.0,0.00015397,2]
[319296080,1710643839467,-500.0,0.00015397,2]
[319296081,1710643839476,-500.0,0.00015397,2]
[319296082,1710643839485,-500.0,0.00015397,2]
[319296083,1710643839495,-500.0,0.00015397,2]
[319296084,1710643839504,-500.0,0.00015397,2]
[319296085,1710643839513,-384.28470729,0.00015397,2]
[319296086,1710643839522,-518.11955279,0.00015397,2]
[319296087,1710643839532,-554.89230488,0.00015397,2]
[319296088,1710643839541,-500.0,0.00015397,2]
[319296089,1710643839550,-500.0,0.00015397,2]
[319296090,1710643839560,-500.0,0.00015397,2]
[319296091,1710643839569,-500.0,0.00015397,2]
[319296092,1710643839578,-500.0,0.00015397,2]
[319296093,1710643839587,-500.0,0.00015397,2]
[319296094,1710643839597,-511.26584329,0.00015397,2]
[319296095,1710643839606,-510.96095164,0.00015397,2]
[319296096,1710643839616,-500.0,0.00015397,2]
[319296097,1710643839625,-500.0,0.00015397,2]
[319296098,1710643839634,-500.0,0.00015397,2]
[319296099,1710643839644,-500.0,0.00015397,2]
[319296100,1710643839654,-503.65379141,0.00015397,2]
[319296101,1710643839663,-505.68231107,0.00015397,2]
[319296102,1710643839673,-362.40054017,0.00015397,2]
[319296103,1710643839682,-516.35224445,0.00015397,2]
[319296104,1710643839691,-500.0,0.00015397,2]
[319296105,1710643839701,-524.33897046,0.00015397,2]
[319296106,1710643839711,-500.0,0.00015397,2]
[319296107,1710643839720,-500.0,0.00015397,2]
[319296108,1710643839730,-500.0,0.00015397,2]
[319296109,1710643839739,-505.35038797,0.00015397,2]
[319296110,1710643839749,-500.0,0.00015397,2]
[319296111,1710643839759,-503.66408918,0.00015397,2]
[319296112,1710643839768,-500.0,0.00015397,2]
[319296113,1710643839778,-479.76764787,0.00015397,2]
[319296114,1710643839787,-501.53569042,0.00015397,2]
[319296115,1710643839797,-500.0,0.00015397,2]
[319296116,1710643839806,-500.0,0.00015397,2]
[319296117,1710643839816,-500.0,0.00015397,2]
[319296118,1710643839825,-500.0,0.00015397,2]
[319296119,1710643839835,-500.0,0.00015397,2]
[319296120,1710643839844,-500.0,0.00015397,2]
[319296121,1710643839853,-500.0,0.00015397,2]
[319296122,1710643839863,-500.0,0.00015397,2]
[319296123,1710643839871,-510.82419093,0.00015397,2]
[319296124,1710643839880,-500.0,0.00015397,2]
[319296125,1710643839890,-500.0,0.00015397,2]
[319296126,1710643839899,-500.0,0.00015397,2]
[319296127,1710643839907,-507.17112032,0.00015397,2]
[319296128,1710643839917,-480.0,0.00015397,2]
[319296129,1710643839926,-500.0,0.00015397,2]
[319296130,1710643839935,-506.44993776,0.00015397,2]
[319296131,1710643839944,-500.0,0.00015397,2]
[319296132,1710643839953,-500.0,0.00015397,2]
[319296133,1710643839963,-500.0,0.00015397,2]
[319296134,1710643839973,-500.0,0.00015397,2]
[319296135,1710643839982,-500.0,0.00015397,2]
[319296136,1710643839991,-500.0,0.00015397,2]
[319296137,1710643840000,-500.0,0.00015397,2]
[319296138,1710643840010,-500.0,0.00015397,2]
[319296139,1710643840020,-500.0,0.00015397,2]
[319296140,1710643840030,-506.12581487,0.00015397,2]
[319296141,1710643840039,-500.0,0.00015397,2]
[319296142,1710643840048,-620.40477107,0.00015397,2]
[319296143,1710643840057,-513.23403316,0.00015397,2]
[319296144,1710643840066,-1835.2036256,0.00015397,2]
[319296145,1710643840074,-1835.2036256,0.00015398,2]
[319296146,1710643840084,-1835.2036256,0.00015398,2]
[319296147,1710643840095,-153.38387994,0.00015398,2]
[319296148,1710643840104,-153.03217688,0.00015398,2]
[319296149,1710643840113,-1835.2036256,0.00015398,2]
[319296150,1710643840122,-1835.2036256,0.00015398,2]
[319296151,1710643840131,-1835.2036256,0.00015399,2]
[319296152,1710643840140,-1835.2036256,0.00015399,2]
[319296153,1710643840149,-867.08655029,0.00015399,2]
[319296154,1710643840158,-1835.2036256,0.00015399,2]
[319296155,1710643840167,-1835.2036256,0.00015399,2]
[319296156,1710643840177,-867.08655028,0.000154,2]
[319296157,1710643840187,-1835.2036256,0.000154,2]
[319296158,1710643840196,-587.10200737,0.000154,2]
[319296159,1710643840205,-10257.7753,0.000154,2]
[319296160,1710643840216,-2511.02050578,0.000154,2]
[319296161,1710643840225,-3690.3711,0.000154,2]
[319296162,1710643840236,-1835.2036256,0.000154,2]
[319296163,1710643840245,-1483.12825698,0.000154,2]
[319296164,1710643840255,-501.90018325,0.00015431,2]
[319296165,1710643840264,-500.0,0.00015431,2]
[319296167,1710643840273,-500.75274642,0.00015431,2]
[319296168,1710643840283,-502.04354633,0.00015431,2]
[319296169,1710643840293,-500.49604625,0.00015431,2]
[319296170,1710643840302,-501.30619463,0.00015431,2]
[319296171,1710643840311,-500.0,0.00015431,2]
[319296172,1710643840320,-501.84158679,0.00015431,2]
[319296173,1710643840329,-503.98275803,0.00015431,2]
[319296174,1710643840338,-501.19558883,0.00015431,2]
[319296175,1710643840347,-501.65585514,0.00015431,2]
[319296176,1710643840357,-498.32310007,0.00015431,2]
[319296177,1710643840366,-500.0,0.00015431,2]
[319296178,1710643840376,-501.61189833,0.00015431,2]
[319296179,1710643840386,-318.46746865,0.00015431,2]
[319296180,1710643840398,-534.51436994,0.00015431,2]
[319296181,1710643840408,-508.26139498,0.00015431,2]
[319296182,1710643840417,-503.67016757,0.00015431,2]
[319296183,1710643840427,-501.53099913,0.00015431,2]
[319296184,1710643840438,-503.87152411,0.00015431,2]
[319296185,1710643840447,-167.59767543,0.00015431,2]
[319296186,1710643840460,-558.4794493,0.00015431,2]
[319296187,1710643840469,-501.03551318,0.00015431,2]
[319296188,1710643840479,-500.0,0.00015431,2]
[319296189,1710643840488,-500.95285927,0.00015431,2]
[319296190,1710643840498,-500.0,0.00015431,2]
[319296191,1710643840507,-627.49082876,0.00015431,2]
[319296192,1710643840517,-184.63735788,0.00015431,2]
[319296193,1710643840526,-500.81118888,0.00015431,2]
[319296194,1710643840537,-502.3277092,0.00015431,2]
[319296195,1710643840547,-502.13513281,0.00015431,2]
[319296196,1710643840556,-500.37344672,0.00015431,2]
[319296197,1710643840565,-498.0095603,0.00015431,2]
[319296198,1710643840574,-500.0,0.00015431,2]
[319296199,1710643840583,-503.99281824,0.00015431,2]
[319296200,1710643840592,-502.5486993,0.00015431,2]
[319296201,1710643840602,-370.924095,0.00015431,2]
[319296202,1710643840614,-501.93667955,0.00015431,2]
[319296203,1710643840623,-500.73272893,0.00015431,2]
[319296204,1710643840633,-500.90476892,0.00015431,2]
[319296205,1710643840643,-500.0,0.00015431,2]
[319296206,1710643840652,-504.88757498,0.00015431,2]
[319296207,1710643840661,-501.013919,0.00015431,2]
[319296208,1710643840671,-501.04530524,0.00015431,2]
[319296209,1710643840680,-501.24062161,0.00015431,2]
[319296210,1710643840689,-224.75961499,0.00015431,2]
[319296211,1710643840700,-213.296781,0.00015431,2]
[319296212,1710643840711,-959.0,0.00015433,2]
[319296213,1710643840720,-232.653,0.00015433,2]
[319296214,1710643840730,-2200.518,0.00015433,2]
[319296215,1710643840739,-536.0,0.00015433,2]
[319296216,1710643840749,-478.194,0.00015433,2]
[319296217,1710643840758,-1227.0,0.00015433,2]
[319296218,1710643840768,-766.398,0.00015433,2]
[319296219,1710643840779,-211.144,0.00015433,2]
[319296220,1710643840788,-1264.0,0.00015433,2]
[319296221,1710643840798,-800.0,0.00015433,2]
[319296222,1710643840808,-695.279,0.00015433,2]
[319296223,1710643840818,-3000.0,0.00015433,2]
[319296224,1710643840828,-164.843,0.00015433,2]
[319296225,1710643840840,-1416.156,0.00015433,2]
[319296226,1710643840851,-1623.0,0.00015433,2]
[319296227,1710643840860,-181.554,0.00015433,2]
[319296228,1710643840870,-42878.0,0.00015433,2]
[319296229,1710643840879,-5685.454,0.00015433,2]
[319296230,1710643840888,-4776.783,0.00015433,2]
[319296231,1710643840897,-2428.0,0.00015433,2]
[319296232,1710643840906,-150.0,0.00015433,2]
[319296233,1710643840915,-1047.774,0.00015433,2]
[319296234,1710643840924,-150.0,0.00015433,2]
[319296235,1710643840933,-150.115,0.00015433,2]
[319296236,1710643840942,-150.0,0.00015433,2]
[319296237,1710643840951,-285.9,0.00015446,2]
[319296238,1710643840963,-515.22951217,0.00015494,2]
[319296239,1710643840972,-535.6,0.00015494,2]
[319296240,1710643840981,-500.0,0.00015495,2]
[319296241,1710643840990,-254.60439248,0.00015495,2]
[319296242,1710643840999,-500.0,0.00015495,2]
[319296243,1710643841009,-541.85,0.00015495,2]
[319296244,1710643841021,-500.0,0.00015495,2]
[319296245,1710643841033,-500.0,0.00015495,2]
[319296246,1710643841042,-215.91,0.00015495,2]
[319296247,1710643841051,-500.0,0.00015495,2]
[319296248,1710643841061,-500.0,0.00015495,2]
[319296249,1710643841070,-492.7,0.00015495,2]
[319296250,1710643841080,-500.0,0.00015495,2]
[319296251,1710643841089,-500.0,0.00015495,2]
[319296252,1710643841100,-389.8,0.00015495,2]
[319296253,1710643841110,-500.0,0.00015495,2]
[319296254,1710643841119,-500.0,0.00015495,2]
[319296255,1710643841129,-189.36,0.00015495,2]
[319296256,1710643841138,-487.76597201,0.00015495,2]
[319296257,1710643841147,-500.0,0.00015495,2]
[319296258,1710643841156,-500.0,0.00015495,2]
[319296259,1710643841165,-223.07,0.00015495,2]
[319296260,1710643841174,-500.0,0.00015495,2]
[319296261,1710643841184,-500.0,0.00015495,2]
[319296262,1710643841193,-500.0,0.00015495,2]
[319296263,1710643841202,-500.0,0.00015495,2]
[319296264,1710643841211,-500.0,0.00015495,2]
[319296265,1710643841221,-500.0,0.00015495,2]
[319296266,1710643841229,-500.0,0.00015495,2]
[319296267,1710643841239,-500.0,0.00015495,2]
[319296268,1710643841249,-500.0,0.00015495,2]
[319296269,1710643841259,-500.0,0.00015495,2]
[319296270,1710643841268,-327.59,0.00015495,2]
[319296271,1710643841277,-500.0,0.00015495,2]
[319296272,1710643841286,-500.0,0.00015495,2]
[319296273,1710643841295,-500.0,0.00015495,2]
[319296274,1710643841304,-500.0,0.00015495,2]
[319296275,1710643841313,-500.0,0.00015495,2]
[319296276,1710643841322,-500.0,0.00015495,2]
[319296277,1710643841331,-500.0,0.00015495,2]
[319296278,1710643841340,-500.0,0.00015495,2]
[319296279,1710643841349,-500.0,0.00015495,2]
[319296280,1710643841359,-202.61139158,0.00015495,2]
[319296281,1710643841368,-500.0,0.00015495,2]
[319296282,1710643841377,-500.0,0.00015495,2]
[319296283,1710643841386,-500.0,0.00015495,2]
[319296284,1710643841395,-500.0,0.00015495,2]
[319296285,1710643841404,-500.0,0.00015495,2]
[319296286,1710643841414,-500.0,0.00015495,2]
[319296287,1710643841423,-500.0,0.00015495,2]
[319296288,1710643841432,-500.0,0.00015495,2]
[319296289,1710643841441,-500.0,0.00015495,2]
[319296290,1710643841451,-511.67850973,0.00015495,2]
[319296291,1710643841462,-500.0,0.00015495,2]
[319296292,1710643841470,-500.0,0.00015495,2]
[319296293,1710643841479,-500.0,0.00015495,2]
[319296294,1710643841488,-500.0,0.00015495,2]
[319296295,1710643841498,-500.0,0.00015495,2]
[319296296,1710643841507,-500.0,0.00015495,2]
[319296297,1710643841516,-500.0,0.00015495,2]
[319296298,1710643841526,-351.78671667,0.00015495,2]
[319296299,1710643841536,-500.0,0.00015495,2]
[319296300,1710643841545,-500.0,0.00015495,2]
[319296301,1710643841554,-500.0,0.00015495,2]
[319296302,1710643841564,-500.0,0.00015495,2]
[319296303,1710643841573,-500.0,0.00015495,2]
[319296304,1710643841582,-500.0,0.00015495,2]
[319296305,1710643841591,-500.0,0.00015495,2]
[319296306,1710643841601,-500.0,0.00015495,2]
[319296307,1710643841609,-500.0,0.00015495,2]
[319296308,1710643841619,-500.0,0.00015495,2]
[319296309,1710643841627,-500.0,0.00015495,2]
[319296310,1710643841637,-500.0,0.00015495,2]
[319296311,1710643841646,-500.0,0.00015495,2]
[319296312,1710643841655,-150.0,0.00015495,2]
[319296313,1710643841665,-500.0,0.00015495,2]
[319296314,1710643841674,-500.0,0.00015495,2]
[319296315,1710643841683,-500.0,0.00015495,2]
[319296316,1710643841692,-500.0,0.00015495,2]
[319296317,1710643841702,-500.0,0.00015495,2]
[319296318,1710643841711,-500.0,0.00015495,2]
[319296319,1710643841720,-500.0,0.00015495,2]
[319296320,1710643841729,-500.0,0.00015495,2]
[319296321,1710643841738,-212.12546594,0.00015495,2]
[319296322,1710643841747,-500.0,0.00015495,2]
[319296323,1710643841756,-501.29435704,0.00015495,2]
[319296324,1710643841766,-541.68,0.00015495,2]
[319296325,1710643841775,-500.0,0.00015495,2]
[319296326,1710643841784,-500.0,0.00015495,2]
[319296327,1710643841794,-501.71751001,0.00015495,2]
[319296328,1710643841803,-524.71378443,0.00015495,2]
[319296329,1710643841812,-533.90489803,0.00015495,2]
[319296330,1710643841820,-500.0,0.00015495,2]
[319296331,1710643841830,-508.90079238,0.00015495,2]
[319296332,1710643841839,-500.0,0.00015495,2]
[319296333,1710643841848,-163.0125344,0.00015495,2]
[319296334,1710643841857,-500.0,0.00015495,2]
[319296335,1710643841866,-500.0,0.00015495,2]
[319296336,1710643841875,-500.0,0.00015495,2]
[319296337,1710643841885,-500.0,0.00015495,2]
[319296338,1710643841894,-500.0,0.00015495,2]
[319296339,1710643841903,-500.0,0.00015495,2]
[319296340,1710643841912,-500.0,0.00015495,2]
[319296341,1710643841921,-500.0,0.00015495,2]
[319296342,1710643841930,-500.0,0.00015495,2]
[319296343,1710643841939,-500.0,0.00015495,2]
[319296344,1710643841948,-500.0,0.00015495,2]
[319296345,1710643841957,-500.0,0.00015495,2]
[319296346,1710643841967,-500.0,0.00015495,2]
[319296347,1710643841977,-500.0,0.00015495,2]
[319296348,1710643841986,-500.0,0.00015495,2]
[319296349,1710643841995,-500.0,0.00015495,2]
[319296350,1710643842004,-500.0,0.00015495,2]
[319296351,1710643842013,-500.0,0.00015495,2]
[319296352,1710643842026,-478.2,0.00015495,2]
[319296353,1710643842035,-500.0,0.00015495,2]
[319296354,1710643842045,-500.0,0.00015495,2]
[319296355,1710643842054,-603.37,0.00015495,2]
[319296356,1710643842063,-500.0,0.00015495,2]
[319296357,1710643842072,-433.15,0.00015495,2]
[319296358,1710643842082,-500.0,0.00015495,2]
[319296359,1710643842091,-523.18,0.00015495,2]
[319296360,1710643842100,-500.0,0.00015495,2]
[319296361,1710643842110,-500.0,0.00015495,2]
[319296362,1710643842119,-500.0,0.00015495,2]
[319296363,1710643842128,-500.0,0.00015495,2]
[319296364,1710643842138,-500.0,0.00015495,2]
[319296365,1710643842147,-500.0,0.00015495,2]
[319296366,1710643842155,-500.0,0.00015495,2]
[319296367,1710643842164,-500.0,0.00015495,2]
[319296368,1710643842174,-500.0,0.00015495,2]
[319296369,1710643842183,-500.0,0.00015495,2]
[319296370,1710643842192,-500.0,0.00015495,2]
[319296371,1710643842201,-500.0,0.00015495,2]
[319296372,1710643842212,-500.0,0.00015495,2]
[319296373,1710643842221,-500.0,0.00015495,2]
[319296374,1710643842230,-500.0,0.00015495,2]
[319296375,1710643842239,-508.49667056,0.00015495,2]
[319296376,1710643842248,-500.0,0.00015495,2]
[319296377,1710643842258,-500.0,0.00015495,2]
[319296378,1710643842267,-519.11714569,0.00015495,2]
[319296379,1710643842276,-500.0,0.00015495,2]
[319296380,1710643842286,-500.0,0.00015495,2]
[319296381,1710643842294,-519.2532813,0.00015495,2]
[319296382,1710643842304,-500.0,0.00015495,2]
[319296383,1710643842313,-500.0,0.00015495,2]
[319296384,1710643842322,-521.29418395,0.00015495,2]
[319296385,1710643842331,-500.0,0.00015495,2]
[319296386,1710643842340,-500.0,0.00015495,2]
[319296387,1710643842349,-500.0,0.00015495,2]
[319296388,1710643842358,-500.0,0.00015495,2]
[319296389,1710643842367,-500.0,0.00015495,2]
[319296390,1710643842376,-516.32980937,0.00015495,2]
[319296391,1710643842385,-382.94957465,0.00015495,2]
[319296392,1710643842394,-500.0,0.00015495,2]
[319296393,1710643842403,-500.0,0.00015495,2]
[319296394,1710643842413,-527.24952297,0.00015495,2]
[319296395,1710643842422,-500.0,0.00015495,2]
[319296396,1710643842431,-547.3844425,0.00015495,2]
[319296397,1710643842440,-500.0,0.00015495,2]
[319296398,1710643842449,-500.0,0.00015495,2]
[319296399,1710643842458,-500.0,0.00015495,2]
[319296400,1710643842470,-500.0,0.00015495,2]
[319296401,1710643842478,-500.0,0.00015495,2]
[319296402,1710643842487,-500.0,0.00015495,2]
[319296403,1710643842497,-500.0,0.00015495,2]
[319296404,1710643842506,-500.0,0.00015495,2]
[319296406,1710643842515,-500.0,0.00015495,2]
[319296426,1710643842696,-500.0,0.00015495,2]
[319296428,1710643842706,-517.64622479,0.00015495,2]
[319296430,1710643842719,-490.0,0.00015495,2]
[319296432,1710643842729,-500.0,0.00015495,2]
[319296434,1710643842739,-500.0,0.00015495,2]
[319296436,1710643842749,-500.0,0.00015495,2]
[319296438,1710643842759,-500.0,0.00015495,2]
[319296440,1710643842768,-500.0,0.00015495,2]
[319296442,1710643842778,-500.0,0.00015495,2]
[319296444,1710643842788,-500.0,0.00015495,2]
[319296446,1710643842797,-500.0,0.00015495,2]
[319296448,1710643842807,-500.0,0.00015495,2]
[319296450,1710643842817,-500.0,0.00015495,2]
[319296452,1710643842826,-500.0,0.00015495,2]
[319296454,1710643842836,-500.0,0.00015495,2]
[319296456,1710643842846,-500.0,0.00015495,2]
[319296458,1710643842857,-500.0,0.00015495,2]
[319296460,1710643842868,-500.0,0.00015495,2]
[319296462,1710643842878,-500.0,0.00015495,2]
[319296464,1710643842889,-506.75,0.00015495,2]
[319296467,1710643842899,-500.0,0.00015495,2]
[319296469,1710643842909,-506.75,0.00015495,2]
[319296470,1710643842919,-506.75,0.00015495,2]
[319296473,1710643842930,-506.75,0.00015495,2]
[319296475,1710643842941,-500.0,0.00015495,2]
[319296477,1710643842951,-500.0,0.00015495,2]
[319296479,1710643842962,-500.0,0.00015495,2]
[319296481,1710643842971,-500.0,0.00015495,2]
[319296482,1710643842983,-500.0,0.00015495,2]
[319296483,1710643842993,-526.89122197,0.00015495,2]
[319296484,1710643843003,-500.0,0.00015495,2]
[319296485,1710643843012,-641.39,0.00015495,2]
[319296486,1710643843022,-641.39,0.00015495,2]
[319296487,1710643843032,-641.39,0.00015495,2]
[319296488,1710643843041,-641.39,0.00015495,2]
[319296489,1710643843050,-512.35798512,0.00015495,2]
[319296490,1710643843059,-500.0,0.00015495,2]
[319296491,1710643843069,-500.0,0.00015495,2]
[319296492,1710643843078,-500.0,0.00015495,2]
[319296493,1710643843088,-189.99279077,0.00015495,2]
[319296494,1710643843099,-500.0,0.00015495,2]
[319296496,1710643843109,-500.0,0.00015495,2]
[319296498,1710643843119,-500.0,0.00015495,2]
[319296500,1710643843128,-500.0,0.00015495,2]
[319296502,1710643843138,-500.0,0.00015495,2]
[319296503,1710643843147,-500.0,0.00015495,2]
[319296504,1710643843156,-500.0,0.00015495,2]
[319296506,1710643843166,-500.0,0.00015495,2]
[319296507,1710643843175,-500.0,0.00015495,2]
[319296509,1710643843185,-500.0,0.00015495,2]
[319296510,1710643843194,-500.0,0.00015495,2]
[319296511,1710643843204,-500.0,0.00015495,2]
[319296512,1710643843214,-500.0,0.00015495,2]
[319296513,1710643843223,-432.07728346,0.00015495,2]
[319296514,1710643843232,-500.0,0.00015495,2]
[319296515,1710643843242,-500.0,0.00015495,2]
[319296516,1710643843251,-554.47,0.00015495,2]
[319296517,1710643843260,-500.0,0.00015495,2]
[319296518,1710643843269,-500.0,0.00015495,2]
[319296519,1710643843279,-500.0,0.00015495,2]
[319296520,1710643843288,-500.0,0.00015495,2]
[319296521,1710643843297,-500.0,0.00015495,2]
[319296522,1710643843306,-500.0,0.00015495,2]
[319296523,1710643843315,-515.65,0.00015495,2]
[319296524,1710643843324,-500.0,0.00015495,2]
[319296525,1710643843333,-500.0,0.00015495,2]
[319296526,1710643843343,-500.0,0.00015495,2]
[319296527,1710643843353,-500.0,0.00015495,2]
[319296528,1710643843362,-500.0,0.00015495,2]
[319296529,1710643843372,-500.0,0.00015495,2]
[319296530,1710643843381,-500.0,0.00015495,2]
[319296531,1710643843391,-500.0,0.00015495,2]
[319296532,1710643843401,-500.0,0.00015495,2]
[319296533,1710643843410,-500.0,0.00015495,2]
[319296534,1710643843419,-500.0,0.00015495,2]
[319296535,1710643843429,-500.0,0.00015495,2]
[319296536,1710643843438,-500.0,0.00015495,2]
[319296537,1710643843448,-500.0,0.00015495,2]
[319296538,1710643843457,-256.13273885,0.00015495,2]
[319296539,1710643843468,-500.0,0.00015495,2]
[319296540,1710643843477,-500.0,0.00015495,2]
[319296541,1710643843487,-500.0,0.00015495,2]
[319296542,1710643843496,-500.0,0.00015495,2]
[319296543,1710643843505,-500.0,0.00015495,2]
[319296544,1710643843514,-500.0,0.00015495,2]
[319296545,1710643843524,-500.0,0.00015495,2]
[319296546,1710643843534,-225.14,0.00015495,2]
[319296547,1710643843544,-500.0,0.00015495,2]
[319296548,1710643843554,-500.0,0.00015495,2]
[319296549,1710643843563,-500.0,0.00015495,2]
[319296550,1710643843573,-316.89940453,0.00015495,2]
[319296551,1710643843583,-500.0,0.00015495,2]
[319296552,1710643843592,-500.0,0.00015495,2]
[319296553,1710643843602,-500.0,0.00015495,2]
[319296554,1710643843611,-477.91711752,0.00015495,2]
[319296555,1710643843621,-510.12947961,0.00015495,2]
[319296556,1710643843630,-500.0,0.00015495,2]
[319296557,1710643843639,-200.21,0.00015495,2]
[319296558,1710643843649,-500.0,0.00015495,2]
[319296559,1710643843659,-500.0,0.00015495,2]
[319296560,1710643843669,-500.0,0.00015495,2]
[319296561,1710643843678,-500.0,0.00015495,2]
[319296562,1710643843689,-500.0,0.00015495,2]
[319296563,1710643843698,-500.0,0.00015495,2]
[319296564,1710643843709,-255.38,0.00015495,2]
[319296565,1710643843719,-500.0,0.00015495,2]
[319296566,1710643843730,-204.45,0.00015495,2]
[319296567,1710643843742,-518.67086138,0.00015495,2]
[319296568,1710643843751,-500.0,0.00015495,2]
[319296569,1710643843760,-500.0,0.00015495,2]
[319296570,1710643843770,-500.0,0.00015495,2]
[319296572,1710643843780,-500.0,0.00015495,2]
[319296573,1710643843789,-607.56,0.00015495,2]
[319296574,1710643843799,-500.0,0.00015495,2]
[319296575,1710643843809,-500.0,0.00015495,2]
[319296576,1710643843819,-500.0,0.00015495,2]
[319296577,1710643843831,-500.0,0.00015495,2]
[319296578,1710643843842,-500.0,0.00015495,2]
[319296579,1710643843851,-553.47774816,0.00015495,2]
[319296580,1710643843861,-500.0,0.00015495,2]
[319296581,1710643843870,-522.23170638,0.00015495,2]
[319296582,1710643843879,-500.0,0.00015495,2]
[319296583,1710643843888,-500.0,0.00015495,2]
[319296584,1710643843900,-500.0,0.00015495,2]
[319296585,1710643843913,-500.0,0.00015495,2]
[319296586,1710643843925,-500.0,0.00015495,2]
[319296587,1710643843935,-500.0,0.00015495,2]
[319296588,1710643843947,-500.0,0.00015495,2]
[319296589,1710643843958,-500.0,0.00015495,2]
[319296590,1710643843973,-500.0,0.00015495,2]
[319296591,1710643843986,-486.3845536,0.00015495,2]
[319296592,1710643843997,-500.0,0.00015495,2]
[319296593,1710643844010,-526.37,0.00015495,2]
[319296594,1710643844019,-500.0,0.00015495,2]
[319296595,1710643844030,-500.0,0.00015495,2]
[319296596,1710643844039,-500.0,0.00015495,2]
[319296597,1710643844049,-500.0,0.00015495,2]
[319296598,1710643844058,-500.0,0.00015495,2]
[319296599,1710643844067,-500.0,0.00015495,2]
[319296600,1710643844076,-500.0,0.00015495,2]
[319296601,1710643844086,-499.08,0.00015495,2]
[319296602,1710643844095,-500.0,0.00015495,2]
[319296603,1710643844105,-500.0,0.00015495,2]
[319296604,1710643844114,-510.41426478,0.00015495,2]
[319296605,1710643844124,-500.0,0.00015495,2]
[319296606,1710643844133,-500.0,0.00015495,2]
[319296607,1710643844142,-500.0,0.00015495,2]
[319296608,1710643844151,-500.0,0.00015495,2]
[319296609,1710643844160,-500.0,0.00015495,2]
[319296610,1710643844170,-500.0,0.00015495,2]
[319296611,1710643844179,-500.0,0.00015495,2]
[319296612,1710643844188,-500.0,0.00015495,2]
[319296613,1710643844198,-500.0,0.00015495,2]
[319296614,1710643844208,-500.0,0.00015495,2]
[319296615,1710643844219,-500.0,0.00015495,2]
[319296616,1710643844228,-353.18,0.00015495,2]
[319296617,1710643844237,-500.83,0.00015495,2]
[319296618,1710643844246,-500.0,0.00015495,2]
[319296619,1710643844254,-500.0,0.00015495,2]
[319296620,1710643844264,-500.0,0.00015495,2]
[319296621,1710643844273,-475.11944672,0.00015495,2]
[319296622,1710643844283,-508.0050734,0.00015495,2]
[319296623,1710643844292,-370.15136061,0.00015495,2]